{"text_format":"1","workbook":"xlsx","n_sheets":2,"sheets":["Лист1","Лист2"],"not_rendered":{"charts":0,"images":1,"macros":1,"external_links":0,"defined_names":1,"comments":0,"pivot_tables":0},"unopened":[],"bounds":{"document_bytes":16777216,"sheet_cells":100000,"rows_first":2000,"rows_last":500,"rows_between":2000,"halvings":0,"cell_chars":16384,"cell_head_chars":4096},"cells_cut":0,"cells_raw":0,"read":"whole","date_system":"1900"}

{"sheet":"Лист1","index":0,"n_rows":72,"n_cols":23,"rows_kept":72,"cut":false,"hidden":false,"merged":[[39,5,39,12],[39,0,39,4],[37,0,38,12],[98,9,98,12],[93,8,94,8],[95,8,97,8],[129,9,129,12],[0,0,0,7],[100,0,100,12],[101,0,123,12],[124,8,125,8],[124,9,124,12],[125,9,125,12],[126,8,128,8],[126,9,126,12],[127,9,127,12],[128,9,128,12],[93,9,93,12],[94,9,94,12],[95,9,95,12],[96,9,96,12],[97,9,97,12],[71,22,71,25],[70,22,70,25],[40,0,44,12],[46,0,70,12],[69,22,69,25],[45,0,45,9],[3,5,3,12],[36,0,36,6],[36,10,36,11],[9,10,9,12],[9,0,9,8],[32,22,33,25],[32,21,33,21],[67,22,67,25],[68,22,68,25],[38,13,38,25],[66,21,67,21],[66,22,66,25],[39,13,65,25],[1,0,2,12],[4,0,8,12],[0,13,2,25],[10,0,34,12],[36,13,37,25],[0,10,0,11],[3,13,3,25],[4,13,26,25],[27,21,28,21],[27,22,27,25],[28,22,28,25],[29,21,31,21],[29,22,29,25],[30,22,30,25],[31,22,31,25],[3,0,3,4]]}
["Договор на оказание платных медицинских услуг   №",null,null,null,null,null,null,null,{"$f":"Лист2!C11","v":283},null,{"$f":"Лист2!C10","v":"10.04.2018г."},null,null," 3. Стоимость платных медицинских услуг, сроки и порядок их оплаты    \n3.1. Медицинские услуги, оплачиваются Пациентом перед их оказанием в соответствии с настоящим договором в кассу  Исполнителя в соответствии с калькуляцией услуг  по прейскуранту на услуги, действующему на момент заключения настоящего договора.  \n3.2. После оплаты Пациенту выдается контрольно-кассовый чек, или  квитанция, или иной бланк строгой отчетности, подтверждающий произведенную оплату медицинских услуг."]
["ОГБУЗ «Слюдянская РБ», имеющее лицензию на осуществление  медицинской  деятельности ЛО-38-01-003079 от 06.03.2018 г., именуемое в дальнейшем Исполнителем, в лице главного врача Анганзоровой Галины Валентиновны, действующего на  основании Устава, с одной стороны, и гражданин"]
[]
[{"$f":"CONCATENATE(Лист2!C2,\" \",Лист2!C3,\" \",Лист2!C4)","v":"Даничев Николай Иванович  "},null,null,null,null,"именуемый в дальнейшем Пациентом, с другой стороны, далее при совместном  ",null,null,null,null,null,null,null,"4. Порядок изменения и расторжения договора"]
["упоминании именуемые Сторонами, руководствуясь  Федеральным законом от 21.11.2011г. № 323-ФЗ \"Об основах охраны здоровья граждан в Российской  Федерации\" (далее - Федеральный закон № 323-ФЗ), Правилами предоставления медицинскими организациями платных медицинских услуг, утвержденными Постановлением Правительства РФ от 04.10.2012 г. № 1006, заключили настоящий договор о нижеследующем.                     \n                                                                                    1. Предмет договора                           \n1.1. Исполнитель с учетом положений настоящего договора обязуется оказать Пациенту платные медицинские услуги:",null,null,null,null,null,null,null,null,null,null,null,null,"4.1. Все изменения и дополнения к настоящему договору, требующие взаимного согласия  Сторон, будут действительны только в случае, если они совершены в  письменной  форме  и  подписаны  уполномоченными на то представителями Сторон (либо ими лично).                \n4.2. Настоящий договор может быть расторгнут по соглашению Сторон либо в одностороннем порядке, в случаях, предусмотренных законодательством РФ\n4.3. О  намерении досрочного прекращения настоящего договора Стороны обязаны  уведомить  друг  друга не менее чем за три дня до предполагаемой даты его прекращения.                                                                                                                                                                                                                                                                                                            .                                                                                     5.  Условия и сроки предоставления платных медицинских услуг       \n 5.1.  Пациент ознакомлен с получением соответствующих видов и объемов медицинской помощи без взимания платы в рамках программы государственных гарантий бесплатного оказания гражданам медицинской помощи и территориальной программы государственных гарантий бесплатного оказания гражданам медицинской помощи (при условии наличия направления лечащего врача ОГБУЗ \"Слюдянская РБ\"). Подписание настоящего договора Пациентом является согласием на получение медицинских услуг, указанных в п.1.1.  договора на платной основе.\n 5.2.  Настоящий  договор  вступает  в  силу  с момента его подписания Сторонами  и действует  до  выполнения сторонами своих обязательств.                                              \n                                                                                                             6. Врачебная тайна\n6.1. Исполнитель гарантирует неразглашение передаваемых Пациентом сведений, составляющих врачебную тайну, информации о факте его обращения за  медицинской помощью, состоянии здоровья Пациента, его диагнозе и иных данных,  полученных  при  его обследовании и лечении. Предоставление сведений, составляющих  врачебную  тайну,  без  согласия Пациента или его законного представителя допускается в случаях, установленных законодательством РФ и настоящим договором.                                                     \n                                                                      7. Ответственность Сторон за невыполнение условий договора\n7.1. Исполнитель несет ответственность за нарушение прав Пациента в сфере охраны здоровья, причинение вреда жизни и (или) здоровью Пациента при оказании ему медицинской помощи, а также за неисполнение или ненадлежащее  исполнение  условий   настоящего договора, несоблюдение требований, предъявляемых к методам диагностики, профилактики и лечения, разрешенным на территории РФ.                                            \n7.2. Пациент  имеет  право при обнаружении недостатков оказанной ему платной  медицинской  услуги,  других  отступлений  от условий настоящего договора требовать от Исполнителя по своему выбору:                      \n    -  безвозмездного устранения недостатков оказанной услуги в разумный срок, назначенный Исполнителем;                                          \n    -  соответствующего уменьшения цены оказанной услуги;                 \nТребования, предусмотренные настоящим пунктом, могут быть предъявлены, если это не противоречит особенностям предмета настоящего договора, а наличие  недостатков  подтверждено результатами независимой медицинской экспертизы или решением суда.                                \n7.3. Исполнитель освобождается от ответственности за неисполнение или ненадлежащее  исполнение  платной  медицинской  услуги, если докажет, что неисполнение  или  ненадлежащее исполнение произошло вследствие непреодолимой  силы,  а  также  по  причине  нарушения  Пациентом  своих обязанностей, предусмотренных п. п. 2.3.1 - 2.3.2 настоящего договора.   \n8.  Настоящий договор составлен в 2-х  экземплярах, имеющих одинаковую юридическую силу.                                             \n9. Адреса и реквизиты Сторон"]
[]
[]
[]
[]
[{"$f":"Лист2!C8","v":"Код000339 МО на право управления водными видами ТС"},null,null,null,null,null,null,null,null,{"$f":"Лист2!C9","v":1368},{"$f":"CONCATENATE(\"(\",СУММАПРОПИСЬЮ(J10),\")\")","v":"(одна тысяча триста шестьдесят восемь )"}]
["надлежащего качества в соответствии с требованиями, предъявляемыми к методам диагностики, профилактики и лечения,  разрешенным на территории РФ, а Пациент обязуется принять и оплатить оказанные услуги. Платные медицинские услуги предоставляются при наличии информированного добровольного согласия Пациента (законного представителя), данного в порядке, установленном законодательством Российской Федерации об охране здоровья граждан.\n2. Права и обязанности Сторон\n2.1. Исполнитель обязуется:                                          \n2.1.1. Оказать Пациенту медицинские услуги в соответствии с порядками оказания медицинской помощи и стандартами медицинской помощи.            \n2.1.2. Соблюдать  врачебную  тайну,  в  том числе конфиденциальность персональных данных, используемых в медицинских информационных системах. \n2.2. Исполнитель имеет право:                                        \n2.2.1. Получать от Пациента информацию, необходимую для выполнения своих обязательств по настоящему договору. В  случае непредставления либо неполного или неверного предоставления Пациентом информации Исполнитель  имеет право  приостановить  исполнение своих обязательств  по настоящему договору до предоставления необходимой информации.                                                              \n2.2.2. В случае возникновения неотложных состояний, угрозы жизни Пациента самостоятельно определять объем  исследований  и  оперативных вмешательств,  необходимых  для  установления  диагноза,  обследования  и оказания  медицинской  помощи,  в  том числе не предусмотренных настоящим договором.                                                               \n2.3. Пациент обязуется:                                              \n2.3.1. Своевременно оплатить Исполнителю медицинские услуги, указанные в п. 1.1. настоящего договора в порядке и размере, предусмотренные настоящим договором.                  \n2.3.2. Соблюдать   правила   поведения   пациентов   в  медицинском учреждении, правила внутреннего распорядка и режим работы Исполнителя.   \n2.4. Пациент имеет право:                                                                \n2.4.1. На  получение  информации  о  своих  правах  и  обязанностях, состоянии  своего здоровья. \n2.4.2. На защиту сведений, составляющих врачебную тайну.             \n2.4.3. На отказ от медицинского вмешательства.                       \n2.4.4. На  возмещение  вреда,  причиненного  здоровью  Пациента  при оказании ему медицинской помощи.                                         \n2.5. Пациент вправе в любое время отказаться от исполнения настоящего договора,  оплатив Исполнителю услуги, оказанные до получения извещения о расторжении   настоящего   договора,  и  возместив  Исполнителю  расходы, произведенные им до этого момента в целях исполнения настоящего договора.\n                                         \n"]
[]
[]
[]
[]
[]
[]
[]
[]
[]
[]
[]
[]
[]
[]
[]
[]
[null,null,null,null,null,null,null,null,null,null,null,null,null,null,null,null,null,null,null,null,null,"Пациент",{"$f":"Лист2!C2","v":"Даничев Николай Иванович"}]
[null,null,null,null,null,null,null,null,null,null,null,null,null,null,null,null,null,null,null,null,null,null,{"$f":"CONCATENATE(Лист2!C3,\" \",Лист2!C4)","v":" "}]
[null,null,null,null,null,null,null,null,null,null,null,null,null,null,null,null,null,null,null,null,null,"Адрес",{"$f":"Лист2!C5","v":"г. Слюдянка"}]
[null,null,null,null,null,null,null,null,null,null,null,null,null,null,null,null,null,null,null,null,null,null,{"$f":"Лист2!C6","v":"Иркутской обл."}]
[null,null,null,null,null,null,null,null,null,null,null,null,null,null,null,null,null,null,null,null,null,null,{"$f":"Лист2!C7","v":0}]
[null,null,null,null,null,null,null,null,null,null,null,null,null,null,null,null,null,null,null,null,null,"Подпись"]
[]
[]
[]
["Договор на оказание платных медицинских услуг   №",null,null,null,null,null,null,{"$f":"I1","v":283},null,null,{"$f":"Лист2!C10","v":"10.04.2018г."},null,null,"3.2. После оплаты Пациенту выдается контрольно-кассовый чек, или  квитанция, или иной бланк строгой отчетности, подтверждающий произведенную оплату медицинских услуг."]
["ОГБУЗ «Слюдянская РБ», имеющее лицензию на осуществление  медицинской  деятельности ЛО-38-01-003079 от 06.03.2018 г, именуемое в дальнейшем Исполнителем, в лице главного врача Анганзоровой Галины Валентиновны, действующего на  основании Устава, с одной стороны, и гражданин"]
[null,null,null,null,null,null,null,null,null,null,null,null,null,"4. Порядок изменения и расторжения договора"]
[{"$f":"CONCATENATE(Лист2!C2,\" \",Лист2!C3,\" \",Лист2!C4)","v":"Даничев Николай Иванович  "},null,null,null,null,"именуемый в дальнейшем Пациентом, с другой стороны, далее при совместном ",null,null,null,null,null,null,null,"4.1. Все изменения и дополнения к настоящему договору, требующие взаимного согласия  Сторон, будут действительны только в случае, если они совершены в  письменной  форме  и  подписаны  уполномоченными на то представителями Сторон (либо ими лично).                \n4.2. Настоящий договор может быть расторгнут по соглашению Сторон либо в одностороннем порядке, в случаях, предусмотренных законодательством РФ\n4.3. О  намерении досрочного прекращения настоящего договора Стороны обязаны  уведомить  друг  друга не менее чем за три дня до предполагаемой даты его прекращения.                                                                                                                                                                                                                                                                                                            .                                                                                     5.  Условия и сроки предоставления платных медицинских услуг       \n 5.1.  Пациент ознакомлен с получением соответствующих видов и объемов медицинской помощи без взимания платы в рамках программы государственных гарантий бесплатного оказания гражданам медицинской помощи и территориальной программы государственных гарантий бесплатного оказания гражданам медицинской помощи (при условии наличия направления лечащего врача ОГБУЗ \"Слюдянская РБ\"). Подписание настоящего договора Пациентом является согласием на получение медицинских услуг, указанных в п.1.1.  договора на платной основе.\n 5.2.  Настоящий  договор  вступает  в  силу  с момента его подписания Сторонами  и действует  до  выполнения сторонами своих обязательств.                                              \n                                                                                                             6. Врачебная тайна\n6.1. Исполнитель гарантирует неразглашение передаваемых Пациентом сведений, составляющих врачебную тайну, информации о факте его обращения за  медицинской помощью, состоянии здоровья Пациента, его диагнозе и иных данных,  полученных  при  его обследовании и лечении. Предоставление сведений, составляющих  врачебную  тайну,  без  согласия Пациента или его законного представителя допускается в случаях, установленных законодательством РФ и настоящим договором.                                                     \n                                                                      7. Ответственность Сторон за невыполнение условий договора\n7.1. Исполнитель несет ответственность за нарушение прав Пациента в сфере охраны здоровья, причинение вреда жизни и (или) здоровью Пациента при оказании ему медицинской помощи, а также за неисполнение или ненадлежащее  исполнение  условий   настоящего договора, несоблюдение требований, предъявляемых к методам диагностики, профилактики и лечения, разрешенным на территории РФ.                                            \n7.2. Пациент  имеет  право при обнаружении недостатков оказанной ему платной  медицинской  услуги,  других  отступлений  от условий настоящего договора требовать от Исполнителя по своему выбору:                      \n    -  безвозмездного устранения недостатков оказанной услуги в разумный срок, назначенный Исполнителем;                                          \n    -  соответствующего уменьшения цены оказанной услуги;                 \nТребования, предусмотренные настоящим пунктом, могут быть предъявлены, если это не противоречит особенностям предмета настоящего договора, а наличие  недостатков  подтверждено результатами независимой медицинской экспертизы или решением суда.                                \n7.3. Исполнитель освобождается от ответственности за неисполнение или ненадлежащее  исполнение  платной  медицинской  услуги, если докажет, что неисполнение  или  ненадлежащее исполнение произошло вследствие непреодолимой  силы,  а  также  по  причине  нарушения  Пациентом  своих обязанностей, предусмотренных п. п. 2.3.1 - 2.3.2 настоящего договора.   \n8.  Настоящий договор составлен в 2-х  экземплярах, имеющих одинаковую юридическую силу.                                             \n9. Адреса и реквизиты Сторон"]
["упоминании именуемые Сторонами, руководствуясь  Федеральным законом от 21.11.2011г. № 323-ФЗ \"Об основах охраны здоровья граждан в Российской  Федерации\" (далее - Федеральный закон № 323-ФЗ), Правилами предоставления медицинскими организациями платных медицинских услуг, утвержденными Постановлением Правительства РФ от 04.10.2012 г. № 1006, заключили настоящий договор о нижеследующем.                     \n                                                                                    1. Предмет договора                           \n1.1. Исполнитель с учетом положений настоящего договора обязуется оказать Пациенту платные медицинские услуги:"]
[]
[]
[]
[]
[{"$f":"A10","v":"Код000339 МО на право управления водными видами ТС"},null,null,null,null,null,null,null,null,null,{"$f":"Лист2!C9","v":1368},{"$f":"CONCATENATE(\"(\",СУММАПРОПИСЬЮ(K46),\")\")","v":"(одна тысяча триста шестьдесят восемь )"}]
["надлежащего качества в соответствии с требованиями, предъявляемыми к методам диагностики, профилактики и лечения,  разрешенным на территории РФ, а Пациент обязуется принять и оплатить оказанные услуги. Платные медицинские услуги предоставляются при наличии информированного добровольного согласия Пациента (законного представителя), данного в порядке, установленном законодательством Российской Федерации об охране здоровья граждан.\n2. Права и обязанности Сторон\n2.1. Исполнитель обязуется:                                          \n2.1.1. Оказать Пациенту медицинские услуги в соответствии с порядками оказания медицинской помощи и стандартами медицинской помощи.            \n2.1.2. Соблюдать  врачебную  тайну,  в  том числе конфиденциальность персональных данных, используемых в медицинских информационных системах. \n2.2. Исполнитель имеет право:                                        \n2.2.1. Получать от Пациента информацию, необходимую для выполнения своих обязательств по настоящему договору. В  случае непредставления либо неполного или неверного предоставления Пациентом информации Исполнитель  имеет право  приостановить  исполнение своих обязательств  по настоящему договору до предоставления необходимой информации.                                                              \n2.2.2. В случае возникновения неотложных состояний, угрозы жизни Пациента самостоятельно определять объем  исследований  и  оперативных вмешательств,  необходимых  для  установления  диагноза,  обследования  и оказания  медицинской  помощи,  в  том числе не предусмотренных настоящим договором.                                                               \n2.3. Пациент обязуется:                                              \n2.3.1. Своевременно оплатить Исполнителю медицинские услуги, указанные в п. 1.1. настоящего договора в порядке и размере, предусмотренные настоящим договором.                  \n2.3.2. Соблюдать   правила   поведения   пациентов   в  медицинском учреждении, правила внутреннего распорядка и режим работы Исполнителя.   \n2.4. Пациент имеет право:                                                                \n2.4.1. На  получение  информации  о  своих  правах  и  обязанностях, состоянии  своего здоровья. \n2.4.2. На защиту сведений, составляющих врачебную тайну.             \n2.4.3. На отказ от медицинского вмешательства.                       \n2.4.4. На  возмещение  вреда,  причиненного  здоровью  Пациента  при оказании ему медицинской помощи.                                         \n2.5. Пациент вправе в любое время отказаться от исполнения настоящего договора,  оплатив Исполнителю услуги, оказанные до получения извещения о расторжении   настоящего   договора,  и  возместив  Исполнителю  расходы, произведенные им до этого момента в целях исполнения настоящего договора.                                              \n 3. Стоимость платных медицинских услуг, сроки и порядок их оплаты    \n3.1. Медицинские услуги, оплачиваются Пациентом перед их оказанием в соответствии с настоящим договором в кассу  Исполнителя в соответствии с калькуляцией услуг  по прейскуранту на услуги, действующему на момент заключения настоящего договора.  \n"]
[]
[]
[]
[]
[]
[]
[]
[]
[]
[]
[]
[]
[]
[]
[]
[]
[]
[]
[]
[null,null,null,null,null,null,null,null,null,null,null,null,null,null,null,null,null,null,null,null,null,"Пациент",{"$f":"Лист2!C2","v":"Даничев Николай Иванович"}]
[null,null,null,null,null,null,null,null,null,null,null,null,null,null,null,null,null,null,null,null,null,null,{"$f":"CONCATENATE(Лист2!C3,\" \",Лист2!C4)","v":" "}]
[null,null,null,null,null,null,null,null,null,null,null,null,null,null,null,null,null,null,null,null,null,"Адрес",{"$f":"Лист2!C5","v":"г. Слюдянка"}]
[null,null,null,null,null,null,null,null,null,null,null,null,null,null,null,null,null,null,null,null,null,null,{"$f":"Лист2!C6","v":"Иркутской обл."}]
[null,null,null,null,null,null,null,null,null,null,null,null,null,null,null,null,null,null,null,null,null,null,{"$f":"Лист2!C7","v":0}]
[null,null,null,null,null,null,null,null,null,null,null,null,null,null,null,null,null,null,null,null,null,"Подпись"]

{"sheet":"Лист2","index":1,"n_rows":11,"n_cols":4,"rows_kept":11,"cut":false,"hidden":false,"merged":[]}
[]
[null,"ФИО","Даничев Николай Иванович"]
[]
[]
[null,"Область, район","г. Слюдянка"]
[null,"Город","Иркутской обл."]
[null,"Улица, дом, квартира"]
[null,"Услуга","Код000339 МО на право управления водными видами ТС"]
[null,"Цена",1368]
[null,"Дата","10.04.2018г.","ФУНКЦИЯ СТАВЛЯЕТ СЕГОДНЯ"]
[null,"№ договора",283]